fUST/lending_fUST_20240715
["ID","MTS","AMOUNT","RATE_DAILY","PERIOD"]
[332184194,1721014241958,-500.0,0.00024657,2]
[332184195,1721014241968,-500.0,0.00024657,2]
[332184196,1721014241977,-514.46089773,0.00024657,2]
[332184197,1721014241986,-508.29512087,0.00024657,2]
[332184198,1721014241995,-500.0,0.00024657,2]
[332184199,1721014242005,-500.0,0.00024657,2]
[332184200,1721014242014,-500.0,0.00024657,2]
[332184201,1721014242023,-500.0,0.00024657,2]
[332184202,1721014242033,-500.0,0.00024657,2]
[332184203,1721014242043,-500.0,0.00024657,2]
[332184204,1721014242052,-500.0,0.00024657,2]
[332184205,1721014242062,-500.0,0.00024657,2]
[332184206,1721014242071,-514.46764343,0.00024657,2]
[332184207,1721014242080,-521.88,0.00024657,2]
[332184208,1721014242089,-500.0,0.00024657,2]
[332184209,1721014242098,-560.73364047,0.00024657,2]
[332184210,1721014242108,-500.0,0.00024657,2]
[332184211,1721014242118,-500.0,0.00024657,2]
[332184212,1721014242128,-500.0,0.00024657,2]
[332184213,1721014242138,-500.0,0.00024657,2]
[332184214,1721014242147,-500.0,0.00024657,2]
[332184215,1721014242156,-500.0,0.00024657,2]
[332184216,1721014242166,-500.0,0.00024657,2]
[332184217,1721014242176,-500.0,0.00024657,2]
[332184218,1721014242186,-278.4574303,0.00024657,2]
[332184219,1721014242196,-500.0,0.00024657,2]
[332184220,1721014242205,-503.19748351,0.00024657,2]
[332184221,1721014242216,-500.0,0.00024657,2]
[332184222,1721014242226,-500.0,0.00024657,2]
[332184223,1721014242235,-500.0,0.00024657,2]
[332184224,1721014242245,-500.0,0.00024657,2]
[332184225,1721014242254,-500.0,0.00024657,2]
[332184226,1721014242264,-500.0,0.00024657,2]
[332184227,1721014242273,-500.0,0.00024657,2]
[332184228,1721014242283,-519.62652879,0.00024657,2]
[332184229,1721014242293,-519.10902499,0.00024657,2]
[332184230,1721014242302,-435.31866524,0.00024657,2]
[332184231,1721014242311,-500.0,0.00024657,2]
[332184232,1721014242321,-500.0,0.00024657,2]
[332184233,1721014242331,-500.0,0.00024657,2]
[332184234,1721014242341,-506.97245312,0.00024657,2]
[332184235,1721014242351,-500.0,0.00024657,2]
[332184236,1721014242361,-238.18588994,0.00024657,2]
[332184237,1721014242371,-500.0,0.00024657,2]
[332184238,1721014242380,-192.75603079,0.00024657,2]
[332184239,1721014242390,-500.0,0.00024657,2]
[332184240,1721014242399,-500.0,0.00024657,2]
[332184241,1721014242409,-500.0,0.00024657,2]
[332184242,1721014242419,-500.0,0.00024657,2]
[332184243,1721014242428,-500.0,0.00024657,2]
[332184244,1721014242438,-500.0,0.00024657,2]
[332184245,1721014242448,-500.0,0.00024657,2]
[332184246,1721014242457,-500.0,0.00024657,2]
[332184247,1721014242466,-507.13098591,0.00024657,2]
[332184248,1721014242476,-500.0,0.00024657,2]
[332184249,1721014242486,-1004.87,0.00024657,2]
[332184250,1721014242495,-418.84435249,0.00024657,2]
[332184251,1721014242505,-500.0,0.00024657,2]
[332184252,1721014242515,-500.0,0.00024657,2]
[332184253,1721014242524,-500.0,0.00024657,2]
[332184254,1721014242534,-500.0,0.00024657,2]
[332184255,1721014242543,-3422.77,0.00024657,2]
[332184256,1721014242553,-500.0,0.00024657,2]
[332184257,1721014242563,-500.0,0.00024657,2]
[332184258,1721014242573,-500.0,0.00024657,2]
[332184259,1721014242583,-503.6111805,0.00024657,2]
[332184260,1721014242592,-500.0,0.00024657,2]
[332184261,1721014242602,-500.0,0.00024657,2]
[332184262,1721014242611,-500.0,0.00024657,2]
[332184263,1721014242621,-500.0,0.00024657,2]
[332184264,1721014242630,-500.0,0.00024657,2]
[332184265,1721014242639,-500.0,0.00024657,2]
[332184266,1721014242648,-540.8909332,0.00024657,2]
[332184267,1721014242658,-510.52037686,0.00024657,2]
[332184268,1721014242668,-500.0,0.00024657,2]
[332184269,1721014242679,-500.0,0.00024657,2]
[332184270,1721014242689,-500.0,0.00024657,2]
[332184271,1721014242699,-500.0,0.00024657,2]
[332184272,1721014242708,-324.16840616,0.00024657,2]
[332184273,1721014242718,-500.0,0.00024657,2]
[332184274,1721014242728,-500.0,0.00024657,2]
[332184275,1721014242737,-466.6149137,0.00024657,2]
[332184276,1721014242747,-539.80621175,0.00024657,2]
[332184277,1721014242759,-500.0,0.00024657,2]
[332184278,1721014242770,-503.19769547,0.00024657,2]
[332184279,1721014242779,-500.0,0.00024657,2]
[332184280,1721014242789,-500.0,0.00024657,2]
[332184281,1721014242799,-500.0,0.00024657,2]
[332184282,1721014242810,-500.0,0.00024657,2]
[332184283,1721014242819,-500.0,0.00024657,2]
[332184284,1721014242829,-500.0,0.00024657,2]
[332184285,1721014242838,-500.0,0.00024657,2]
[332184286,1721014242848,-500.0,0.00024657,2]
[332184287,1721014242857,-500.0,0.00024657,2]
[332184288,1721014242867,-500.0,0.00024657,2]
[332184289,1721014242876,-500.0,0.00024657,2]
[332184290,1721014242886,-500.0,0.00024657,2]
[332184291,1721014242895,-500.0,0.00024657,2]
[332184292,1721014242905,-500.0,0.00024657,2]
[332184293,1721014242915,-507.08613906,0.00024657,2]
[332184294,1721014242925,-501.62910118,0.00024657,2]
[332184295,1721014242936,-500.0,0.00024657,2]
[332184296,1721014242946,-500.0,0.00024657,2]
[332184298,1721014242956,-500.0,0.00024657,2]
[332184300,1721014242966,-500.0,0.00024657,2]
[332184302,1721014242976,-500.0,0.00024657,2]
[332184304,1721014242985,-554.69,0.00024657,2]
[332184306,1721014242995,-503.01824375,0.00024657,2]
[332184307,1721014243004,-500.0,0.00024657,2]
[332184309,1721014243014,-500.0,0.00024657,2]
[332184312,1721014243023,-500.0,0.00024657,2]
[332184313,1721014243033,-500.0,0.00024657,2]
[332184315,1721014243042,-500.0,0.00024657,2]
[332184316,1721014243053,-500.0,0.00024657,2]
[332184317,1721014243062,-500.0,0.00024657,2]
[332184318,1721014243072,-500.0,0.00024657,2]
[332184319,1721014243082,-500.0,0.00024657,2]
[332184320,1721014243092,-500.0,0.00024657,2]
[332184321,1721014243102,-500.0,0.00024657,2]
[332184322,1721014243111,-500.0,0.00024657,2]
[332184323,1721014243121,-500.0,0.00024657,2]
[332184324,1721014243130,-500.0,0.00024657,2]
[332184325,1721014243140,-512.1,0.00024657,2]
[332184326,1721014243150,-500.0,0.00024657,2]
[332184327,1721014243159,-12591.27,0.00024657,2]
[332184328,1721014243169,-500.0,0.00024657,2]
[332184329,1721014243179,-500.0,0.00024657,2]
[332184330,1721014243189,-500.0,0.00024657,2]
[332184331,1721014243199,-4830.84,0.00024657,2]
[332184332,1721014243209,-500.0,0.00024657,2]
[332184333,1721014243219,-620.90808888,0.00024657,2]
[332184334,1721014243228,-500.0,0.00024657,2]
[332184335,1721014243238,-438.36043315,0.00024657,2]
[332184336,1721014243248,-500.0,0.00024657,2]
[332184337,1721014243257,-500.0,0.00024657,2]
[332184338,1721014243267,-500.0,0.00024657,2]
[332184339,1721014243276,-970.58,0.00024657,2]
[332184340,1721014243285,-500.0,0.00024657,2]
[332184341,1721014243295,-500.64577095,0.00024657,2]
[332184342,1721014243305,-500.0,0.00024657,2]
[332184344,1721014243315,-484.83906994,0.00024657,2]
[332184345,1721014243325,-500.0,0.00024657,2]
[332184346,1721014243334,-500.0,0.00024657,2]
[332184347,1721014243343,-500.0,0.00024657,2]
[332184348,1721014243354,-500.0,0.00024657,2]
[332184349,1721014243364,-500.0,0.00024657,2]
[332184350,1721014243373,-393.33438591,0.00024657,2]
[332184351,1721014243383,-500.0,0.00024657,2]
[332184352,1721014243394,-509.11486679,0.00024657,2]
[332184353,1721014243403,-500.0,0.00024657,2]
[332184354,1721014243413,-500.0,0.00024657,2]
[332184355,1721014243422,-2614.26,0.00024657,2]
[332184356,1721014243432,-369.74375234,0.00024657,2]
[332184357,1721014243441,-566.54577305,0.00024657,2]
[332184358,1721014243451,-514.15243101,0.00024657,2]
[332184359,1721014243460,-500.0,0.00024657,2]
[332184360,1721014243470,-500.0,0.00024657,2]
[332184361,1721014243480,-500.0,0.00024657,2]
[332184362,1721014243490,-412.28692648,0.00024657,2]
[332184363,1721014243499,-500.0,0.00024657,2]
[332184364,1721014243508,-500.0,0.00024657,2]
[332184365,1721014243518,-500.0,0.00024657,2]
[332184366,1721014243527,-500.0,0.00024657,2]
[332184367,1721014243546,-511.88708437,0.00024657,2]
[332184368,1721014243558,-1500.0,0.00024657,2]
[332184369,1721014243568,-500.0,0.00024657,2]
[332184370,1721014243578,-500.0,0.00024657,2]
[332184371,1721014243587,-777.65,0.00024657,2]
[332184372,1721014243597,-544.02584149,0.00024657,2]
[332184373,1721014243607,-500.0,0.00024657,2]
[332184374,1721014243617,-500.0,0.00024657,2]
[332184375,1721014243627,-500.0,0.00024657,2]
[332184376,1721014243637,-500.0,0.00024657,2]
[332184377,1721014243648,-430.64224005,0.00024657,2]
[332184378,1721014243658,-580.89,0.00024657,2]
[332184380,1721014243672,-424.33681806,0.00024657,2]
[332184381,1721014243682,-500.0,0.00024657,2]
[332184382,1721014243692,-500.0,0.00024657,2]
[332184383,1721014243701,-1498.79,0.00024657,2]
[332184384,1721014243713,-498.73436249,0.00024657,2]
[332184385,1721014243723,-500.0,0.00024658,2]
[332184386,1721014243733,-500.0,0.00024658,2]
[332184387,1721014243748,-199.00380464,0.00024658,2]
[332184388,1721014243759,-4499.999999,0.00024668,2]
[332184389,1721014243768,-151.0,0.00024756,2]
[332184390,1721014243778,-131989.78966357,0.000248,2]
[332184395,1721014243963,-500.0,0.00024657,2]
[332184398,1721014243973,-22010.5085546,0.000248,2]
[332184400,1721014243983,-27000.0,0.000248,2]
[332184401,1721014243992,-862.70131319,0.00024831,5]
[332184403,1721014244001,-37821.90042179,0.00024831,3]
[332184405,1721014244011,-45930.36179545,0.0002489,3]
[332184409,1721014244100,-503.61667129,0.00024657,2]
[332184410,1721014244110,-500.0,0.00024657,2]
[332184411,1721014244119,-1135.24824723,0.0002489,3]
[332184439,1721014246722,-500.0,0.00024657,2]
[332184440,1721014246732,-7050.0000006,0.0002489,3]
[332184442,1721014380985,163.00473882,0.00014999,2]
[332184443,1721014389078,7075.77189738,0.00014998,2]
[332184448,1721014708339,2135.60833403,0.00014999,2]
[332184449,1721014709519,9199.21947162,0.00014998,2]
[332184450,1721014818886,160.62877099,0.00014999,2]
[332184453,1721015017354,741.80660103,0.00014999,2]
[332184455,1721015159339,519.95582208,0.00014999,2]
[332184456,1721015210502,160.5201035,0.00014999,2]
[332184457,1721015344816,155.45465387,0.00014999,2]
[332184459,1721015375956,-505.41831375,0.00016254,2]
[332184461,1721015375986,-13.94667705,0.00016254,2]
[332184539,1721015439163,-1422.6225769,0.00016155,2]
[332184540,1721015439174,-172.0,0.00016254,2]
[332184541,1721015439185,-34255.25341315,0.00016255,2]
[332184542,1721015439195,-17395.58687864,0.00016255,2]
[332184543,1721015439205,-429.76808757,0.0002,2]
[332184544,1721015439216,-557.55490721,0.0002,2]
[332184545,1721015439226,-318.726339,0.00021096,2]
[332184546,1721015439236,-2000.0,0.00024557,2]
[332184547,1721015439247,-162.31797394,0.00024557,2]
[332184548,1721015439257,-29112.1946528,0.00024637,3]
[332184549,1721015439267,-449.86,0.00024637,3]
[332184550,1721015439277,-160.0,0.00024645,3]
[332184551,1721015439287,-307.12238456,0.00024646,2]
[332184552,1721015439297,-174673.167917,0.00024647,3]
[332184553,1721015439308,-1000.01020909,0.00024653,2]
[332184554,1721015439317,-5706.05322723,0.00024657,5]
[332184555,1721015439327,-391.63139082,0.00024657,2]
[332184556,1721015439337,-500.0,0.00024657,2]
[332184557,1721015439348,-500.0,0.00024657,2]
[332184558,1721015439359,-500.0,0.00024657,2]
[332184559,1721015439369,-503.06287828,0.00024657,2]
[332184560,1721015439379,-543.0506052,0.00024657,2]
[332184561,1721015439389,-503.72278492,0.00024657,2]
[332184562,1721015439399,-500.0,0.00024657,2]
[332184563,1721015439408,-500.0,0.00024657,2]
[332184564,1721015439418,-500.0,0.00024657,2]
[332184565,1721015439429,-500.0,0.00024657,2]
[332184566,1721015439439,-500.0,0.00024657,2]
[332184567,1721015439449,-518.73271971,0.00024657,2]
[332184568,1721015439459,-537.68541117,0.00024657,2]
[332184569,1721015439468,-500.0,0.00024657,2]
[332184570,1721015439478,-500.0,0.00024657,2]
[332184571,1721015439488,-500.0,0.00024657,2]
[332184572,1721015439497,-500.0,0.00024657,2]
[332184573,1721015439507,-501.22580125,0.00024657,2]
[332184574,1721015439517,-500.0,0.00024657,2]
[332184575,1721015439526,-500.0,0.00024657,2]
[332184576,1721015439536,-500.0,0.00024657,2]
[332184577,1721015439545,-500.0,0.00024657,2]
[332184578,1721015439555,-500.0,0.00024657,2]
[332184579,1721015439566,-500.0,0.00024657,2]
[332184580,1721015439576,-500.0,0.00024657,2]
[332184581,1721015439586,-505.65589366,0.00024657,2]
[332184582,1721015439596,-500.0,0.00024657,2]
[332184583,1721015439607,-500.0,0.00024657,2]
[332184584,1721015439616,-500.0,0.00024657,2]
[332184585,1721015439626,-500.0,0.00024657,2]
[332184586,1721015439635,-500.0,0.00024657,2]
[332184587,1721015439645,-500.0,0.00024657,2]
[332184588,1721015439655,-500.0,0.00024657,2]
[332184589,1721015439664,-500.0,0.00024657,2]
[332184590,1721015439674,-500.0,0.00024657,2]
[332184591,1721015439684,-467.86386125,0.00024657,2]
[332184592,1721015439693,-467.18215292,0.00024657,2]
[332184593,1721015439702,-500.0,0.00024657,2]
[332184594,1721015439712,-507.07375226,0.00024657,2]
[332184595,1721015439722,-1000.14,0.00024657,4]
[332184596,1721015439731,-500.0,0.00024657,2]
[332184597,1721015439740,-188.31436392,0.00024657,2]
[332184598,1721015439750,-503.82846791,0.00024657,2]
[332184599,1721015439760,-500.0,0.00024657,2]
[332184600,1721015439770,-500.0,0.00024657,2]
[332184601,1721015439779,-556.02474155,0.00024657,2]
[332184602,1721015439790,-500.0,0.00024657,2]
[332184603,1721015439800,-503.73103914,0.00024657,2]
[332184604,1721015439810,-504.95648779,0.00024657,2]
[332184605,1721015439820,-500.0,0.00024657,2]
[332184606,1721015439829,-500.0,0.00024657,2]
[332184607,1721015439839,-500.0,0.00024657,2]
[332184608,1721015439848,-501.97546178,0.00024657,2]
[332184609,1721015439859,-500.0,0.00024657,2]
[332184610,1721015439868,-500.0,0.00024657,2]
[332184611,1721015439878,-502.93225978,0.00024657,2]
[332184612,1721015439887,-500.0,0.00024657,2]
[332184613,1721015439897,-500.0,0.00024657,2]
[332184614,1721015439906,-500.0,0.00024657,2]
[332184615,1721015439915,-500.0,0.00024657,2]
[332184616,1721015439927,-501.178986,0.00024657,2]
[332184617,1721015439937,-500.0,0.00024657,2]
[332184618,1721015439946,-506.87830058,0.00024657,2]
[332184619,1721015439957,-500.0,0.00024657,2]
[332184620,1721015439968,-500.0,0.00024657,2]
[332184621,1721015439978,-268.0520377,0.00024657,2]
[332184622,1721015439988,-500.0,0.00024657,2]
[332184623,1721015439998,-500.0,0.00024657,2]
[332184625,1721015440009,-500.0,0.00024657,2]
[332184626,1721015440019,-505.24553905,0.00024657,2]
[332184627,1721015440032,-500.0,0.00024657,2]
[332184628,1721015440042,-500.0,0.00024657,2]
[332184629,1721015440052,-500.0,0.00024657,2]
[332184630,1721015440063,-500.0,0.00024657,2]
[332184631,1721015440073,-500.0,0.00024657,2]
[332184632,1721015440083,-500.0,0.00024657,2]
[332184633,1721015440094,-500.0,0.00024657,2]
[332184634,1721015440106,-500.0,0.00024657,2]
[332184635,1721015440117,-500.0,0.00024657,2]
[332184636,1721015440127,-517.99164239,0.00024657,2]
[332184637,1721015440138,-500.0,0.00024657,2]
[332184638,1721015440149,-503.17747868,0.00024657,2]
[332184639,1721015440158,-500.0,0.00024657,2]
[332184640,1721015440167,-528.53739632,0.00024657,2]
[332184641,1721015440177,-500.0,0.00024657,2]
[332184642,1721015440187,-500.0,0.00024657,2]
[332184643,1721015440199,-500.0,0.00024657,2]
[332184644,1721015440209,-500.0,0.00024657,2]
[332184645,1721015440219,-513.11340021,0.00024657,2]
[332184646,1721015440228,-500.0,0.00024657,2]
[332184647,1721015440239,-500.0,0.00024657,2]
[332184648,1721015440250,-500.0,0.00024657,2]
[332184649,1721015440261,-500.0,0.00024657,2]
[332184650,1721015440271,-500.0,0.00024657,2]
[332184651,1721015440282,-503.23523803,0.00024657,2]
[332184652,1721015440293,-500.0,0.00024657,2]
[332184653,1721015440302,-500.0,0.00024657,2]
[332184654,1721015440312,-500.0,0.00024657,2]
[332184655,1721015440322,-518.96900686,0.00024657,2]
[332184656,1721015440331,-500.0,0.00024657,2]
[332184657,1721015440341,-500.0,0.00024657,2]
[332184658,1721015440351,-500.0,0.00024657,2]
[332184659,1721015440361,-344.11488941,0.00024657,2]
[332184661,1721015440370,-500.0,0.00024657,2]
[332184663,1721015440380,-500.0,0.00024657,2]
[332184665,1721015440389,-500.0,0.00024657,2]
[332184667,1721015440399,-500.0,0.00024657,2]
[332184669,1721015440410,-500.0,0.00024657,2]
[332184671,1721015440420,-500.0,0.00024657,2]
[332184673,1721015440431,-378.36834921,0.00024657,2]
[332184675,1721015440442,-500.0,0.00024657,2]
[332184677,1721015440452,-515.44520916,0.00024657,2]
[332184679,1721015440462,-500.0,0.00024657,2]
[332184682,1721015440473,-500.0,0.00024657,2]
[332184684,1721015440483,-378.93831481,0.00024657,2]
[332184686,1721015440494,-500.0,0.00024657,2]
[332184688,1721015440504,-500.0,0.00024657,2]
[332184690,1721015440516,-500.0,0.00024657,2]
[332184692,1721015440528,-500.0,0.00024657,2]
[332184694,1721015440537,-528.75077034,0.00024657,2]
[332184696,1721015440547,-515.00837815,0.00024657,2]
[332184697,1721015440556,-500.0,0.00024657,2]
[332184698,1721015440565,-500.0,0.00024657,2]
[332184700,1721015440575,-500.0,0.00024657,2]
[332184703,1721015440586,-500.0,0.00024657,2]
[332184705,1721015440596,-500.0,0.00024657,2]
[332184707,1721015440608,-500.0,0.00024657,2]
[332184709,1721015440619,-500.0,0.00024657,2]
[332184711,1721015440630,-500.0,0.00024657,2]
[332184713,1721015440640,-500.0,0.00024657,2]
[332184715,1721015440650,-528.7983058,0.00024657,2]
[332184717,1721015440660,-500.0,0.00024657,2]
[332184719,1721015440671,-500.0,0.00024657,2]
[332184721,1721015440681,-505.44580815,0.00024657,2]
[332184723,1721015440691,-502.77199462,0.00024657,2]
[332184725,1721015440701,-509.32613113,0.00024657,2]
[332184727,1721015440710,-523.84329336,0.00024657,2]
[332184730,1721015440720,-538.83037769,0.00024657,2]
[332184732,1721015440731,-500.0,0.00024657,2]
[332184734,1721015440740,-500.0,0.00024657,2]
[332184736,1721015440751,-500.0,0.00024657,2]
[332184738,1721015440761,-500.0,0.00024657,2]
[332184740,1721015440771,-500.0,0.00024657,2]
[332184742,1721015440780,-500.0,0.00024657,2]
[332184744,1721015440790,-500.0,0.00024657,2]
[332184745,1721015440800,-500.0,0.00024657,2]
[332184747,1721015440810,-500.0,0.00024657,2]
[332184749,1721015440819,-504.33140913,0.00024657,2]
[332184751,1721015440831,-500.0,0.00024657,2]
[332184753,1721015440841,-500.0,0.00024657,2]
[332184755,1721015440850,-501.2722476,0.00024657,2]
[332184757,1721015440864,-500.0,0.00024657,2]
[332184759,1721015440876,-500.0,0.00024657,2]
[332184760,1721015440885,-511.8920678,0.00024657,2]
[332184761,1721015440895,-504.42363092,0.00024657,2]
[332184762,1721015440905,-488.00690069,0.00024657,2]
[332184763,1721015440914,-500.0,0.00024657,2]
[332184764,1721015440923,-500.0,0.00024657,2]
[332184765,1721015440934,-500.0,0.00024657,2]
[332184766,1721015440944,-500.0,0.00024657,2]
[332184767,1721015440953,-500.0,0.00024657,2]
[332184768,1721015440962,-500.0,0.00024657,2]
[332184769,1721015440972,-500.0,0.00024657,2]
[332184770,1721015440982,-500.0,0.00024657,2]
[332184771,1721015440992,-500.0,0.00024657,2]
[332184772,1721015441002,-501.23163222,0.00024657,2]
[332184773,1721015441011,-500.0,0.00024657,2]
[332184774,1721015441023,-500.0,0.00024657,2]
[332184775,1721015441033,-500.0,0.00024657,2]
[332184776,1721015441043,-500.0,0.00024657,2]
[332184777,1721015441052,-500.0,0.00024657,2]
[332184778,1721015441062,-500.0,0.00024657,2]
[332184779,1721015441071,-501.28772361,0.00024657,2]
[332184780,1721015441082,-500.0,0.00024657,2]
[332184781,1721015441091,-500.0,0.00024657,2]
[332184782,1721015441103,-500.0,0.00024657,2]
[332184783,1721015441114,-500.0,0.00024657,2]
[332184784,1721015441125,-500.0,0.00024657,2]
[332184785,1721015441135,-536.28313923,0.00024657,2]
[332184786,1721015441145,-500.0,0.00024657,2]
[332184787,1721015441157,-517.03726131,0.00024657,2]
[332184788,1721015441166,-500.0,0.00024657,2]
[332184789,1721015441176,-505.2861566,0.00024657,2]
[332184790,1721015441186,-500.0,0.00024657,2]
[332184791,1721015441196,-508.78672029,0.00024657,2]
[332184792,1721015441214,-500.0,0.00024657,2]
[332184793,1721015441228,-500.0,0.00024657,2]
[332184794,1721015441240,-500.91209916,0.00024657,2]
[332184795,1721015441252,-501.30625876,0.00024657,2]
[332184796,1721015441262,-503.21864088,0.00024657,2]
[332184797,1721015441273,-500.0,0.00024657,2]
[332184798,1721015441283,-330.83450562,0.00024657,2]
[332184799,1721015441295,-500.0,0.00024657,2]
[332184800,1721015441304,-500.0,0.00024657,2]
[332184801,1721015441315,-472.20337247,0.00024657,2]
[332184802,1721015441324,-500.0,0.00024657,2]
[332184803,1721015441334,-500.0,0.00024657,2]
[332184804,1721015441343,-500.0,0.00024657,2]
[332184805,1721015441354,-500.0,0.00024657,2]
[332184806,1721015441363,-513.08364485,0.00024657,2]
[332184807,1721015441373,-500.0,0.00024657,2]
[332184808,1721015441384,-500.0,0.00024657,2]
[332184809,1721015441394,-500.0,0.00024657,2]
[332184810,1721015441404,-504.9879137,0.00024657,2]
[332184811,1721015441414,-500.0,0.00024657,2]
[332184812,1721015441424,-504.08446801,0.00024657,2]
[332184813,1721015441434,-500.0,0.00024657,2]
[332184814,1721015441444,-500.0,0.00024657,2]
[332184815,1721015441453,-510.49777851,0.00024657,2]
[332184816,1721015441464,-500.0,0.00024657,2]
[332184817,1721015441474,-503.92591674,0.00024657,2]
[332184818,1721015441484,-500.0,0.00024657,2]
[332184819,1721015441493,-500.0,0.00024657,2]
[332184820,1721015441503,-500.0,0.00024657,2]
[332184821,1721015441512,-500.0,0.00024657,2]
[332184822,1721015441522,-488.95170897,0.00024657,2]
[332184823,1721015441531,-536.49430079,0.00024657,2]
[332184824,1721015441541,-500.0,0.00024657,2]
[332184825,1721015441550,-500.0,0.00024657,2]
[332184826,1721015441560,-500.0,0.00024657,2]
[332184827,1721015441570,-500.0,0.00024657,2]
[332184828,1721015441580,-500.0,0.00024657,2]
[332184829,1721015441591,-500.0,0.00024657,2]
[332184830,1721015441600,-500.0,0.00024657,2]
[332184831,1721015441612,-500.0,0.00024657,2]
[332184832,1721015441621,-500.0,0.00024657,2]
[332184833,1721015441631,-500.0,0.00024657,2]
[332184834,1721015441641,-500.36007564,0.00024657,2]
[332184835,1721015441650,-500.0,0.00024657,2]
[332184836,1721015441660,-500.0,0.00024657,2]
[332184837,1721015441669,-500.0,0.00024657,2]
[332184838,1721015441680,-500.0,0.00024657,2]
[332184839,1721015441690,-507.89166043,0.00024657,2]
[332184840,1721015441699,-500.0,0.00024657,2]
[332184841,1721015441709,-500.0,0.00024657,2]
[332184842,1721015441719,-500.0,0.00024657,2]
[332184843,1721015441729,-500.0,0.00024657,2]
[332184844,1721015441739,-500.0,0.00024657,2]
[332184845,1721015441748,-500.0,0.00024657,2]
[332184846,1721015441920,-500.0,0.00024657,2]
[332184847,1721015441930,-500.0,0.00024657,2]
[332184848,1721015441940,-500.0,0.00024657,2]
[332184849,1721015441950,-502.73474295,0.00024657,2]
[332184850,1721015441959,-501.20182589,0.00024657,2]
[332184851,1721015441968,-500.0,0.00024657,2]
[332184852,1721015441978,-500.0,0.00024657,2]
[332184853,1721015441988,-501.75984912,0.00024657,2]
[332184854,1721015441998,-503.39614467,0.00024657,2]
[332184855,1721015442008,-500.0,0.00024657,2]
[332184856,1721015442017,-500.0,0.00024657,2]
[332184857,1721015442031,-500.0,0.00024657,2]
[332184858,1721015442041,-500.0,0.00024657,2]
[332184859,1721015442050,-1500.0,0.00024657,2]
[332184860,1721015442059,-501.02034836,0.00024657,2]
[332184861,1721015442070,-810.15,0.00024657,2]
[332184862,1721015442080,-503.04754031,0.00024657,2]
[332184863,1721015442089,-507.14597769,0.00024657,2]
[332184864,1721015442099,-500.0,0.00024657,2]
[332184865,1721015442110,-500.0,0.00024657,2]
[332184866,1721015442119,-500.0,0.00024657,2]
[332184867,1721015442129,-501.60291104,0.00024657,2]
[332184868,1721015442138,-500.0,0.00024657,2]
[332184869,1721015442148,-507.95315657,0.00024657,2]
[332184870,1721015442158,-500.0,0.00024657,2]
[332184871,1721015442168,-500.0,0.00024657,2]
[332184872,1721015442178,-500.0,0.00024657,2]
[332184873,1721015442187,-500.0,0.00024657,2]
[332184874,1721015442197,-500.0,0.00024657,2]
[332184875,1721015442206,-500.0,0.00024657,2]
[332184876,1721015442216,-500.0,0.00024657,2]
[332184877,1721015442225,-503.17151581,0.00024657,2]
[332184878,1721015442235,-500.0,0.00024657,2]
[332184879,1721015442245,-500.0,0.00024657,2]
[332184880,1721015442255,-500.0,0.00024657,2]
[332184881,1721015442265,-565.64,0.00024657,2]